{"text_format":"1","workbook":"xlsx","n_sheets":2,"sheets":["رصد الإتقان","Sheet1"],"not_rendered":{"charts":0,"images":3,"macros":1,"external_links":1,"defined_names":3,"comments":0,"pivot_tables":0},"unopened":[],"bounds":{"document_bytes":16777216,"sheet_cells":100000,"rows_first":2000,"rows_last":500,"rows_between":2000,"halvings":0,"cell_chars":16384,"cell_head_chars":4096},"cells_cut":0,"cells_raw":0,"read":"whole","date_system":"1900"}

{"sheet":"رصد الإتقان","index":0,"n_rows":692,"n_cols":13,"rows_kept":692,"cut":false,"hidden":false,"merged":[[0,2,1,2],[2,2,3,5]]}
["محافظة المنوفية",null,"الصف","1l3","عدد الطلبه",null,"اختر","1l1","لغة عربية",null,"الأول ",{"$f":"MATCH(9^9,$A:$A,1)","v":343}]
["ادارة / قويسنا التعليمية",null,null,null,{"$f":"MAX(A:A)","v":98},null,"الفصل","2l1","رياضيات ",null,"الثانى ",335]
["مدرسة / عرب الرمل سكة حديد",null,"تحليل بيانات رصد الإتقان",null,null,null,null,"1l2"]
[null,null,null,null,null,null,"من هنا","2l2","لغة انجليزية"]
["م","الاســــــــم","الظواهر الصوتية","الفهم العام","الظواهر اللغوية","الكتابة والإملاء",null,"1l3"]
[{"$f":"IF(B6=\"\",\"\",SUBTOTAL(3,$B6:B$6))","v":0},"إيمان محمد محمود حسين السعودي",null,null,null,null,"1l1","2l3"]
[{"$f":"IF(B7=\"\",\"\",SUBTOTAL(3,$B$6:B7))","v":0},"إيمان وائل عقل محمد عقل البكري",null,null,null,null,"1l1","1l4"]
[{"$f":"IF(B8=\"\",\"\",SUBTOTAL(3,$B$6:B8))","v":0},"آلاء محمود أحمد عبد الفتاح أحمد",null,null,null,null,"1l1","2l4"]
[{"$f":"IF(B9=\"\",\"\",SUBTOTAL(3,$B$6:B9))","v":0},"بسملة محمد جمال عبد الحليم المرادى",null,null,null,null,"1l1","1l5"]
[{"$f":"IF(B10=\"\",\"\",SUBTOTAL(3,$B$6:B10))","v":0},"جنى إبراهيم أحمد عزت محمد السيد خضير",null,null,null,null,"1l1","2l5"]
[{"$f":"IF(B11=\"\",\"\",SUBTOTAL(3,$B$6:B11))","v":0},"جنى سامح ابراهيم السيد مصيلحي",null,null,null,null,"1l1","3l5"]
[{"$f":"IF(B12=\"\",\"\",SUBTOTAL(3,$B$6:B12))","v":0},"جنى محمد طه محمود عيد",null,null,null,null,"1l1","1l6"]
[{"$f":"IF(B13=\"\",\"\",SUBTOTAL(3,$B$6:B13))","v":0},"جنى وليد رمضان عبد العال متولى",null,null,null,null,"1l1","2l6"]
[{"$f":"IF(B14=\"\",\"\",SUBTOTAL(3,$B$6:B14))","v":0},"جنى نادر مأمون أحمد البرعى ",null,null,null,null,"1l1"]
[{"$f":"IF(B15=\"\",\"\",SUBTOTAL(3,$B$6:B15))","v":0},"جومانه محمد طه محمود عيد",null,null,null,null,"1l1"]
[{"$f":"IF(B16=\"\",\"\",SUBTOTAL(3,$B$6:B16))","v":0},"حنين أسامه حسن باز",null,null,null,null,"1l1"]
[{"$f":"IF(B17=\"\",\"\",SUBTOTAL(3,$B$6:B17))","v":0},"حنين عبد الغنى مسعد محمد حسن",null,null,null,null,"1l1"]
[{"$f":"IF(B18=\"\",\"\",SUBTOTAL(3,$B$6:B18))","v":0},"ريتاج إيهاب عبد العال المغاورى خليل",null,null,null,null,"1l1"]
[{"$f":"IF(B19=\"\",\"\",SUBTOTAL(3,$B$6:B19))","v":0},"ريتاج أحمد عبدالمعطي محمد العليمي",null,null,null,null,"1l1"]
[{"$f":"IF(B20=\"\",\"\",SUBTOTAL(3,$B$6:B20))","v":0},"ريم محمد موسى إبراهيم حسين",null,null,null,null,"1l1"]
[{"$f":"IF(B21=\"\",\"\",SUBTOTAL(3,$B$6:B21))","v":0},"ريهاند محمود طه محمود عيد ابراهيم",null,null,null,null,"1l1"]
[{"$f":"IF(B22=\"\",\"\",SUBTOTAL(3,$B$6:B22))","v":0},"سارة محمد مسعد السعيد سيد احمد",null,null,null,null,"1l1"]
[{"$f":"IF(B23=\"\",\"\",SUBTOTAL(3,$B$6:B23))","v":0},"ساندي تامر جمال جوده علي سليمان",null,null,null,null,"1l1"]
[{"$f":"IF(B24=\"\",\"\",SUBTOTAL(3,$B$6:B24))","v":0},"سما إسماعيل محمد عبد الجواد إسماعيل",null,null,null,null,"1l1"]
[{"$f":"IF(B25=\"\",\"\",SUBTOTAL(3,$B$6:B25))","v":0},"شهد عاطف عبد الحفيظ المهدى",null,null,null,null,"1l1"]
[{"$f":"IF(B26=\"\",\"\",SUBTOTAL(3,$B$6:B26))","v":0},"صفاء نادر عقل محمد عقل",null,null,null,null,"1l1"]
[{"$f":"IF(B27=\"\",\"\",SUBTOTAL(3,$B$6:B27))","v":0},"قمر محمد أحمد النجار",null,null,null,null,"1l1"]
[{"$f":"IF(B28=\"\",\"\",SUBTOTAL(3,$B$6:B28))","v":0},"لميس محمد السيد العونى",null,null,null,null,"1l1"]
[{"$f":"IF(B29=\"\",\"\",SUBTOTAL(3,$B$6:B29))","v":0},"ليندا هانى حمدى محمد محمد عطيه",null,null,null,null,"1l1"]
[{"$f":"IF(B30=\"\",\"\",SUBTOTAL(3,$B$6:B30))","v":0},"مريم كرم أحمد محمد عبدالله",null,null,null,null,"1l1"]
[{"$f":"IF(B31=\"\",\"\",SUBTOTAL(3,$B$6:B31))","v":0},"ملك محمد إبراهيم الطران",null,null,null,null,"1l1"]
[{"$f":"IF(B32=\"\",\"\",SUBTOTAL(3,$B$6:B32))","v":0},"ملك وليد السيد العوني",null,null,null,null,"1l1"]
[{"$f":"IF(B33=\"\",\"\",SUBTOTAL(3,$B$6:B33))","v":0},"ميار بشير طه محمود عيد",null,null,null,null,"1l1"]
[{"$f":"IF(B34=\"\",\"\",SUBTOTAL(3,$B$6:B34))","v":0},"ميار ماهر السيد حسين غلوش",null,null,null,null,"1l1"]
[{"$f":"IF(B35=\"\",\"\",SUBTOTAL(3,$B$6:B35))","v":0},"ندي هاني فتحي عواد فرج",null,null,null,null,"1l1"]
[{"$f":"IF(B36=\"\",\"\",SUBTOTAL(3,$B$6:B36))","v":0},"ندي هشام رفعت محمد عقل",null,null,null,null,"1l1"]
[{"$f":"IF(B37=\"\",\"\",SUBTOTAL(3,$B$6:B37))","v":0},"نهى محمد سمير درغام",null,null,null,null,"1l1"]
[{"$f":"IF(B38=\"\",\"\",SUBTOTAL(3,$B$6:B38))","v":0},"نهى وائل محمد رشاد إبراهيم محمد",null,null,null,null,"1l1"]
[{"$f":"IF(B39=\"\",\"\",SUBTOTAL(3,$B$6:B39))","v":0},"السيد حسن حسينى عبد الهادى السيد",null,null,null,null,"1l1"]
[{"$f":"IF(B40=\"\",\"\",SUBTOTAL(3,$B$6:B40))","v":0},"إبراهيم أحمد صبرى على",null,null,null,null,"1l1"]
[{"$f":"IF(B41=\"\",\"\",SUBTOTAL(3,$B$6:B41))","v":0},"أحمد اسلام رجب ابراهيم",null,null,null,null,"1l1"]
[{"$f":"IF(B42=\"\",\"\",SUBTOTAL(3,$B$6:B42))","v":0},"أحمد إيهاب أحمد محمد إيهاب",null,null,null,null,"1l1",null,"اكتوبر","نوفمبر","ديسمبر"]
[{"$f":"IF(B43=\"\",\"\",SUBTOTAL(3,$B$6:B43))","v":0},"أحمد مصطفي عفيفي عفيفي محمد عيسي",null,null,null,null,"1l1",null,"فبراير","مارس","ابريل"]
[{"$f":"IF(B44=\"\",\"\",SUBTOTAL(3,$B$6:B44))","v":0},"آدم أحمد عبد ربه عبد اللطيف محمد",null,null,null,null,"1l1"]
[{"$f":"IF(B45=\"\",\"\",SUBTOTAL(3,$B$6:B45))","v":0},"آدم محمد جبر أحمد جبر",null,null,null,null,"1l1"]
[{"$f":"IF(B46=\"\",\"\",SUBTOTAL(3,$B$6:B46))","v":0},"بجاد عبد الوهاب جمال محمد أحمد بكر",null,null,null,null,"1l1"]
[{"$f":"IF(B47=\"\",\"\",SUBTOTAL(3,$B$6:B47))","v":0},"ثروت سامى إبراهيم موسى أحمد",null,null,null,null,"1l1"]
[{"$f":"IF(B48=\"\",\"\",SUBTOTAL(3,$B$6:B48))","v":0},"زياد محمد عبد الله عبد الخالق",null,null,null,null,"1l1"]
[{"$f":"IF(B49=\"\",\"\",SUBTOTAL(3,$B$6:B49))","v":0},"سراج محمد توفيق فرج",null,null,null,null,"1l1"]
[{"$f":"IF(B50=\"\",\"\",SUBTOTAL(3,$B$6:B50))","v":0},"سمير عمرو سمير عفيفى",null,null,null,null,"1l1"]
[{"$f":"IF(B51=\"\",\"\",SUBTOTAL(3,$B$6:B51))","v":0},"عبد الرحمن عبد الله مامون زايد",null,null,null,null,"1l1"]
[{"$f":"IF(B52=\"\",\"\",SUBTOTAL(3,$B$6:B52))","v":0},"على السيد عبد الجواد على سليمان",null,null,null,null,"1l1"]
[{"$f":"IF(B53=\"\",\"\",SUBTOTAL(3,$B$6:B53))","v":0},"عمر محمود عبد ربه عبد اللطيف محمد",null,null,null,null,"1l1"]
[{"$f":"IF(B54=\"\",\"\",SUBTOTAL(3,$B$6:B54))","v":0},"فتحى جمال فتحى السيد السيد الشريف",null,null,null,null,"1l1"]
[{"$f":"IF(B55=\"\",\"\",SUBTOTAL(3,$B$6:B55))","v":0},"فتحي وائل ابو الفتوح عبد السلام مصطفي",null,null,null,null,"1l1"]
[{"$f":"IF(B56=\"\",\"\",SUBTOTAL(3,$B$6:B56))","v":0},"مازن سامح شندى عبد العليم شندى",null,null,null,null,"1l1"]
[{"$f":"IF(B57=\"\",\"\",SUBTOTAL(3,$B$6:B57))","v":0},"مازن محمود صبحى ابراهيم",null,null,null,null,"1l1"]
[{"$f":"IF(B58=\"\",\"\",SUBTOTAL(3,$B$6:B58))","v":0},"مازن هانى أحمد محمد أحمد سالم",null,null,null,null,"1l1"]
[{"$f":"IF(B59=\"\",\"\",SUBTOTAL(3,$B$6:B59))","v":0},"مازن وليد عبدالسعيد متولى ايراهيم المرادى",null,null,null,null,"1l1"]
[{"$f":"IF(B60=\"\",\"\",SUBTOTAL(3,$B$6:B60))","v":0},"محمد ابراهيم كمال الصادق حسن",null,null,null,null,"1l1"]
[{"$f":"IF(B61=\"\",\"\",SUBTOTAL(3,$B$6:B61))","v":0},"محمد محمد مسعد امام رضوان",null,null,null,null,"1l1"]
[{"$f":"IF(B62=\"\",\"\",SUBTOTAL(3,$B$6:B62))","v":0},"محمد محمود عبد العليم بيومي عابدين",null,null,null,null,"1l1"]
[{"$f":"IF(B63=\"\",\"\",SUBTOTAL(3,$B$6:B63))","v":0},"محمد مصطفى طه محمود عبيد",null,null,null,null,"1l1"]
[{"$f":"IF(B64=\"\",\"\",SUBTOTAL(3,$B$6:B64))","v":0},"محمد ياسر فهيم أحمد مروان",null,null,null,null,"1l1"]
[{"$f":"IF(B65=\"\",\"\",SUBTOTAL(3,$B$6:B65))","v":0},"محمود عابد فهيم محمد الليثي",null,null,null,null,"1l1"]
[{"$f":"IF(B66=\"\",\"\",SUBTOTAL(3,$B$6:B66))","v":0},"محمود محمد حسن على الدهين",null,null,null,null,"1l1"]
[{"$f":"IF(B67=\"\",\"\",SUBTOTAL(3,$B$6:B67))","v":0},"محمود مدحت محمود",null,null,null,null,"1l1"]
[{"$f":"IF(B68=\"\",\"\",SUBTOTAL(3,$B$6:B68))","v":0},"محمود مصطفى صبحى حماد",null,null,null,null,"1l1"]
[{"$f":"IF(B69=\"\",\"\",SUBTOTAL(3,$B$6:B69))","v":0},"مصطفى محمد عبدالله حسن",null,null,null,null,"1l1"]
[{"$f":"IF(B70=\"\",\"\",SUBTOTAL(3,$B$6:B70))","v":0},"يوسف صلاح محمد مصيلحى عوض",null,null,null,null,"1l1"]
[{"$f":"IF(B71=\"\",\"\",SUBTOTAL(3,$B$6:B71))","v":0},"أسيل ممدوح ابراهيم رزق منتصر",null,null,null,null,"2l1"]
[{"$f":"IF(B72=\"\",\"\",SUBTOTAL(3,$B$6:B72))","v":0},"أمانى محمد محمود إبراهيم السيد داود",null,null,null,null,"2l1"]
[{"$f":"IF(B73=\"\",\"\",SUBTOTAL(3,$B$6:B73))","v":0},"آية أحمد الشناوى الحسينى",null,null,null,null,"2l1"]
[{"$f":"IF(B74=\"\",\"\",SUBTOTAL(3,$B$6:B74))","v":0},"جنى بلال عبد السميع بكر",null,null,null,null,"2l1"]
[{"$f":"IF(B75=\"\",\"\",SUBTOTAL(3,$B$6:B75))","v":0},"جنى سامح الدسوقى أحمد",null,null,null,null,"2l1"]
[{"$f":"IF(B76=\"\",\"\",SUBTOTAL(3,$B$6:B76))","v":0},"جنى محمد عبد التواب سويلم",null,null,null,null,"2l1"]
[{"$f":"IF(B77=\"\",\"\",SUBTOTAL(3,$B$6:B77))","v":0},"جني جمال علي محمد امام عطية",null,null,null,null,"2l1"]
[{"$f":"IF(B78=\"\",\"\",SUBTOTAL(3,$B$6:B78))","v":0},"جني محمد الشحات حامد محمد حسن",null,null,null,null,"2l1"]
[{"$f":"IF(B79=\"\",\"\",SUBTOTAL(3,$B$6:B79))","v":0},"حبيبة محمود حسن على محمد المكاوى",null,null,null,null,"2l1"]
[{"$f":"IF(B80=\"\",\"\",SUBTOTAL(3,$B$6:B80))","v":0},"حبيبه أحمد عبد المنعم يوسف عبدالله",null,null,null,null,"2l1"]
[{"$f":"IF(B81=\"\",\"\",SUBTOTAL(3,$B$6:B81))","v":0},"رودينه أحمد رشدى العليمى",null,null,null,null,"2l1"]
[{"$f":"IF(B82=\"\",\"\",SUBTOTAL(3,$B$6:B82))","v":0},"ريتاج محمد عاطف إبراهيم محمد",null,null,null,null,"2l1"]
[{"$f":"IF(B83=\"\",\"\",SUBTOTAL(3,$B$6:B83))","v":0},"ريماس سامح نبوى زكى محمد العشماوى",null,null,null,null,"2l1"]
[{"$f":"IF(B84=\"\",\"\",SUBTOTAL(3,$B$6:B84))","v":0},"ساندى محمد صلاح الدين السلاوى",null,null,null,null,"2l1"]
[{"$f":"IF(B85=\"\",\"\",SUBTOTAL(3,$B$6:B85))","v":0},"سلمى محمد السيد خضير",null,null,null,null,"2l1"]
[{"$f":"IF(B86=\"\",\"\",SUBTOTAL(3,$B$6:B86))","v":0},"سما محمد إمام محمد المرادى",null,null,null,null,"2l1"]
[{"$f":"IF(B87=\"\",\"\",SUBTOTAL(3,$B$6:B87))","v":0},"سما محمد مسعد رمضان حسنين",null,null,null,null,"2l1"]
[{"$f":"IF(B88=\"\",\"\",SUBTOTAL(3,$B$6:B88))","v":0},"شروق محمد عبدالوهاب محمد عرفه",null,null,null,null,"2l1"]
[{"$f":"IF(B89=\"\",\"\",SUBTOTAL(3,$B$6:B89))","v":0},"فاطمه عاطف همام زكي العوني",null,null,null,null,"2l1"]
[{"$f":"IF(B90=\"\",\"\",SUBTOTAL(3,$B$6:B90))","v":0},"فرحة عماد السيد محمد الإبيارى",null,null,null,null,"2l1"]
[{"$f":"IF(B91=\"\",\"\",SUBTOTAL(3,$B$6:B91))","v":0},"لجين اسلام مصطفي احمد مصطفي عطوة",null,null,null,null,"2l1"]
[{"$f":"IF(B92=\"\",\"\",SUBTOTAL(3,$B$6:B92))","v":0},"لوجين محمود جمال جوده علي",null,null,null,null,"2l1"]
[{"$f":"IF(B93=\"\",\"\",SUBTOTAL(3,$B$6:B93))","v":0},"مريم محمود عبد السميع بكر",null,null,null,null,"2l1"]
[{"$f":"IF(B94=\"\",\"\",SUBTOTAL(3,$B$6:B94))","v":0},"منه السيد عبدالسميع بكر",null,null,null,null,"2l1"]
[{"$f":"IF(B95=\"\",\"\",SUBTOTAL(3,$B$6:B95))","v":0},"مودة وليد مسعد سلطان",null,null,null,null,"2l1"]
[{"$f":"IF(B96=\"\",\"\",SUBTOTAL(3,$B$6:B96))","v":0},"مى محمد عبد الحليم عنتر السيد",null,null,null,null,"2l1"]
[{"$f":"IF(B97=\"\",\"\",SUBTOTAL(3,$B$6:B97))","v":0},"ميار حمدى عبد الفتاح زايد",null,null,null,null,"2l1"]
[{"$f":"IF(B98=\"\",\"\",SUBTOTAL(3,$B$6:B98))","v":0},"ناديه السيد صبحي أحمد الفارس",null,null,null,null,"2l1"]
[{"$f":"IF(B99=\"\",\"\",SUBTOTAL(3,$B$6:B99))","v":0},"نردى أحمد مسعد السعيد سيد أحمد",null,null,null,null,"2l1"]
[{"$f":"IF(B100=\"\",\"\",SUBTOTAL(3,$B$6:B100))","v":0},"نور حسام  أبو المجد أحمد ابو المجد",null,null,null,null,"2l1"]
[{"$f":"IF(B101=\"\",\"\",SUBTOTAL(3,$B$6:B101))","v":0},"نوران محمود ذكي عبدالعزيز علي حماد",null,null,null,null,"2l1"]
[{"$f":"IF(B102=\"\",\"\",SUBTOTAL(3,$B$6:B102))","v":0},"نورهان أحمد عبد الرحمن يوسف",null,null,null,null,"2l1"]
[{"$f":"IF(B103=\"\",\"\",SUBTOTAL(3,$B$6:B103))","v":0},"هنا خالد مسعد السعيد سيد أحمد",null,null,null,null,"2l1"]
[{"$f":"IF(B104=\"\",\"\",SUBTOTAL(3,$B$6:B104))","v":0},"إياد هيثم سلامة محمد",null,null,null,null,"2l1"]
[{"$f":"IF(B105=\"\",\"\",SUBTOTAL(3,$B$6:B105))","v":0},"أحمد عمرو فتحى الحنفي",null,null,null,null,"2l1"]
[{"$f":"IF(B106=\"\",\"\",SUBTOTAL(3,$B$6:B106))","v":0},"أحمد محمد الشافعى يوسف ابراهيم",null,null,null,null,"2l1"]
[{"$f":"IF(B107=\"\",\"\",SUBTOTAL(3,$B$6:B107))","v":0},"أحمد مصطفى عبد ربه",null,null,null,null,"2l1"]
[{"$f":"IF(B108=\"\",\"\",SUBTOTAL(3,$B$6:B108))","v":0},"أحمد نبيل أحمد أبو المجد",null,null,null,null,"2l1"]
[{"$f":"IF(B109=\"\",\"\",SUBTOTAL(3,$B$6:B109))","v":0},"أدهم إبراهيم صبحى أحمد حسن العربى",null,null,null,null,"2l1"]
[{"$f":"IF(B110=\"\",\"\",SUBTOTAL(3,$B$6:B110))","v":0},"أنس أحمد سيدأحمد سعيد سيدأحمد",null,null,null,null,"2l1"]
[{"$f":"IF(B111=\"\",\"\",SUBTOTAL(3,$B$6:B111))","v":0},"أنس أحمد يوسف أحمد",null,null,null,null,"2l1"]
[{"$f":"IF(B112=\"\",\"\",SUBTOTAL(3,$B$6:B112))","v":0},"آسر إيهاب محمد عبدالغفار البرعى",null,null,null,null,"2l1"]
[{"$f":"IF(B113=\"\",\"\",SUBTOTAL(3,$B$6:B113))","v":0},"زياد محمد جمال محمود محمد عابدين",null,null,null,null,"2l1"]
[{"$f":"IF(B114=\"\",\"\",SUBTOTAL(3,$B$6:B114))","v":0},"عاطف ابراهيم عاطف ابراهيم محمد",null,null,null,null,"2l1"]
[{"$f":"IF(B115=\"\",\"\",SUBTOTAL(3,$B$6:B115))","v":0},"عبد الرحمن أحمد البرعى",null,null,null,null,"2l1"]
[{"$f":"IF(B116=\"\",\"\",SUBTOTAL(3,$B$6:B116))","v":0},"عمر عبد الله أحمد السيد شرف",null,null,null,null,"2l1"]
[{"$f":"IF(B117=\"\",\"\",SUBTOTAL(3,$B$6:B117))","v":0},"عمر عبد الناصر حسين إبراهيم غريب",null,null,null,null,"2l1"]
[{"$f":"IF(B118=\"\",\"\",SUBTOTAL(3,$B$6:B118))","v":0},"عمر وليد سلامه محمد الخضري",null,null,null,null,"2l1"]
[{"$f":"IF(B119=\"\",\"\",SUBTOTAL(3,$B$6:B119))","v":0},"مازن محمود عبدالموجود السيد سيدأحمد",null,null,null,null,"2l1"]
[{"$f":"IF(B120=\"\",\"\",SUBTOTAL(3,$B$6:B120))","v":0},"محمد أحمد جبر أحمد جبر",null,null,null,null,"2l1"]
[{"$f":"IF(B121=\"\",\"\",SUBTOTAL(3,$B$6:B121))","v":0},"محمد جمال عبد الرازق مصطفى موسى",null,null,null,null,"2l1"]
[{"$f":"IF(B122=\"\",\"\",SUBTOTAL(3,$B$6:B122))","v":0},"محمد خالد محمد سليمان بكر",null,null,null,null,"2l1"]
[{"$f":"IF(B123=\"\",\"\",SUBTOTAL(3,$B$6:B123))","v":0},"محمد طايل حسانين رمضان حسانين",null,null,null,null,"2l1"]
[{"$f":"IF(B124=\"\",\"\",SUBTOTAL(3,$B$6:B124))","v":0},"محمد عبد اللطيف عبد ربه عبد اللطيف محمد",null,null,null,null,"2l1"]
[{"$f":"IF(B125=\"\",\"\",SUBTOTAL(3,$B$6:B125))","v":0},"محمد غفران محمد عبد المطلب على الاشقر",null,null,null,null,"2l1"]
[{"$f":"IF(B126=\"\",\"\",SUBTOTAL(3,$B$6:B126))","v":0},"محمد فوزي محمود سعيد سيد أحمد",null,null,null,null,"2l1"]
[{"$f":"IF(B127=\"\",\"\",SUBTOTAL(3,$B$6:B127))","v":0},"محمد محمود حسن متولي",null,null,null,null,"2l1"]
[{"$f":"IF(B128=\"\",\"\",SUBTOTAL(3,$B$6:B128))","v":0},"محمد وائل محمد زكى السيد الجزار",null,null,null,null,"2l1"]
[{"$f":"IF(B129=\"\",\"\",SUBTOTAL(3,$B$6:B129))","v":0},"محمد وليد محمد السيد أبو الفتوح",null,null,null,null,"2l1"]
[{"$f":"IF(B130=\"\",\"\",SUBTOTAL(3,$B$6:B130))","v":0},"محمد ياسر عبد الرحيم علي اسماعيل شعلان",null,null,null,null,"2l1"]
[{"$f":"IF(B131=\"\",\"\",SUBTOTAL(3,$B$6:B131))","v":0},"مصطفى أحمد مصطفى عبد المولى عزب",null,null,null,null,"2l1"]
[{"$f":"IF(B132=\"\",\"\",SUBTOTAL(3,$B$6:B132))","v":0},"مصطفى علاء عبد الله عبد الخالق",null,null,null,null,"2l1"]
[{"$f":"IF(B133=\"\",\"\",SUBTOTAL(3,$B$6:B133))","v":0},"مصطفي عبدالوهاب صلاح الدين التهامي عامر",null,null,null,null,"2l1"]
[{"$f":"IF(B134=\"\",\"\",SUBTOTAL(3,$B$6:B134))","v":0},"يوسف أحمد صبحي عبدالرازق أحمد ابراهيم",null,null,null,null,"2l1"]
[{"$f":"IF(B135=\"\",\"\",SUBTOTAL(3,$B$6:B135))","v":0},"يوسف أحمد محمود السيد عبدالرحمن",null,null,null,null,"2l1"]
[{"$f":"IF(B136=\"\",\"\",SUBTOTAL(3,$B$6:B136))","v":0},"يوسف طلعت محمد مامون عطوه يوسف",null,null,null,null,"2l1"]
[{"$f":"IF(B137=\"\",\"\",SUBTOTAL(3,$B$6:B137))","v":0},"جنى ايمن محمود السيد عبد الرحمن",null,null,null,null,"1l2"]
[{"$f":"IF(B138=\"\",\"\",SUBTOTAL(3,$B$6:B138))","v":0},"جنى حسين موسى ابراهيم حسين",null,null,null,null,"1l2"]
[{"$f":"IF(B139=\"\",\"\",SUBTOTAL(3,$B$6:B139))","v":0},"جنى محمد صبحى عبد الرازق احمد",null,null,null,null,"1l2"]
[{"$f":"IF(B140=\"\",\"\",SUBTOTAL(3,$B$6:B140))","v":0},"حبية ابراهيم عاطف ابراهيم محمد",null,null,null,null,"1l2"]
[{"$f":"IF(B141=\"\",\"\",SUBTOTAL(3,$B$6:B141))","v":0},"حنين أيمن فتحى رضوان",null,null,null,null,"1l2"]
[{"$f":"IF(B142=\"\",\"\",SUBTOTAL(3,$B$6:B142))","v":0},"ردينة عصام محمود الحسنى ",null,null,null,null,"1l2"]
[{"$f":"IF(B143=\"\",\"\",SUBTOTAL(3,$B$6:B143))","v":0},"رقيه أحمد مجاهد معوض محمد",null,null,null,null,"1l2"]
[{"$f":"IF(B144=\"\",\"\",SUBTOTAL(3,$B$6:B144))","v":0},"روان صلاح فوزى صلاح الدين التهامى",null,null,null,null,"1l2"]
[{"$f":"IF(B145=\"\",\"\",SUBTOTAL(3,$B$6:B145))","v":0},"رؤى وائل جمال",null,null,null,null,"1l2"]
[{"$f":"IF(B146=\"\",\"\",SUBTOTAL(3,$B$6:B146))","v":0},"روميساء حلمى عبد الهادى على حسن",null,null,null,null,"1l2"]
[{"$f":"IF(B147=\"\",\"\",SUBTOTAL(3,$B$6:B147))","v":0},"ريتال السيد محمد الهادى",null,null,null,null,"1l2"]
[{"$f":"IF(B148=\"\",\"\",SUBTOTAL(3,$B$6:B148))","v":0},"ريم صلاح فوزى صلاح الدين التهامى",null,null,null,null,"1l2"]
[{"$f":"IF(B149=\"\",\"\",SUBTOTAL(3,$B$6:B149))","v":0},"ريناد رفيق فوزى السيد فرج",null,null,null,null,"1l2"]
[{"$f":"IF(B150=\"\",\"\",SUBTOTAL(3,$B$6:B150))","v":0},"ساره محمود فوزى فرج على عبد القادر",null,null,null,null,"1l2"]
[{"$f":"IF(B151=\"\",\"\",SUBTOTAL(3,$B$6:B151))","v":0},"سعاد عمرو الكيلانى عكاشة محمد",null,null,null,null,"1l2"]
[{"$f":"IF(B152=\"\",\"\",SUBTOTAL(3,$B$6:B152))","v":0},"سما مجاهد علي الليثي",null,null,null,null,"1l2"]
[{"$f":"IF(B153=\"\",\"\",SUBTOTAL(3,$B$6:B153))","v":0},"مريم علاء الدين حلمى حسن حماد",null,null,null,null,"1l2"]
[{"$f":"IF(B154=\"\",\"\",SUBTOTAL(3,$B$6:B154))","v":0},"مريم علاء سلامة محمد الخضرى ",null,null,null,null,"1l2"]
[{"$f":"IF(B155=\"\",\"\",SUBTOTAL(3,$B$6:B155))","v":0},"ملك عبد المنعم حسن عبد المنعم السيد بكر",null,null,null,null,"1l2"]
[{"$f":"IF(B156=\"\",\"\",SUBTOTAL(3,$B$6:B156))","v":0},"ملك محمود عبد العزيز يوسف عبد الله",null,null,null,null,"1l2"]
[{"$f":"IF(B157=\"\",\"\",SUBTOTAL(3,$B$6:B157))","v":0},"ملك وليد محمد محمد الصادق",null,null,null,null,"1l2"]
[{"$f":"IF(B158=\"\",\"\",SUBTOTAL(3,$B$6:B158))","v":0},"هنا هانى فوزى السيد فرج",null,null,null,null,"1l2"]
[{"$f":"IF(B159=\"\",\"\",SUBTOTAL(3,$B$6:B159))","v":0},"السيد إبراهيم السيد محمد حماده",null,null,null,null,"1l2"]
[{"$f":"IF(B160=\"\",\"\",SUBTOTAL(3,$B$6:B160))","v":0},"احمد سعيد محمد مصيلحى عوض",null,null,null,null,"1l2"]
[{"$f":"IF(B161=\"\",\"\",SUBTOTAL(3,$B$6:B161))","v":0},"احمد عماد الحسينى عبد العال الليثى",null,null,null,null,"1l2"]
[{"$f":"IF(B162=\"\",\"\",SUBTOTAL(3,$B$6:B162))","v":0},"ادم هانى كرم عبد الرشيد عقل",null,null,null,null,"1l2"]
[{"$f":"IF(B163=\"\",\"\",SUBTOTAL(3,$B$6:B163))","v":0},"أنس محمود عبد الحفيظ المرسى محمد المرادى",null,null,null,null,"1l2"]
[{"$f":"IF(B164=\"\",\"\",SUBTOTAL(3,$B$6:B164))","v":0},"جمال وائل جمال ",null,null,null,null,"1l2"]
[{"$f":"IF(B165=\"\",\"\",SUBTOTAL(3,$B$6:B165))","v":0},"سيد سعيد سيد احمد سعيد سيد احمد",null,null,null,null,"1l2"]
[{"$f":"IF(B166=\"\",\"\",SUBTOTAL(3,$B$6:B166))","v":0},"عبد الرحمن عمرو سمير عطية عفيفى الخولى",null,null,null,null,"1l2"]
[{"$f":"IF(B167=\"\",\"\",SUBTOTAL(3,$B$6:B167))","v":0},"عبد الرحمن محمد فتحى امام عبد الرازق",null,null,null,null,"1l2"]
[{"$f":"IF(B168=\"\",\"\",SUBTOTAL(3,$B$6:B168))","v":0},"عبد الله طة على محمد الليثى",null,null,null,null,"1l2"]
[{"$f":"IF(B169=\"\",\"\",SUBTOTAL(3,$B$6:B169))","v":0},"عبد الله وليد عبد الله عبد المنعم بكر",null,null,null,null,"1l2"]
[{"$f":"IF(B170=\"\",\"\",SUBTOTAL(3,$B$6:B170))","v":0},"على محمد على عبد الرازق حسن",null,null,null,null,"1l2"]
[{"$f":"IF(B171=\"\",\"\",SUBTOTAL(3,$B$6:B171))","v":0},"عمر علاء على الليثى",null,null,null,null,"1l2"]
[{"$f":"IF(B172=\"\",\"\",SUBTOTAL(3,$B$6:B172))","v":0},"عمر محمد سمير على درغام",null,null,null,null,"1l2"]
[{"$f":"IF(B173=\"\",\"\",SUBTOTAL(3,$B$6:B173))","v":0},"عمر محمد على النادى على",null,null,null,null,"1l2"]
[{"$f":"IF(B174=\"\",\"\",SUBTOTAL(3,$B$6:B174))","v":0},"فارس محمد صبحى احمد على",null,null,null,null,"1l2"]
[{"$f":"IF(B175=\"\",\"\",SUBTOTAL(3,$B$6:B175))","v":0},"فتحى محمد فتحى السيد محمد بكر",null,null,null,null,"1l2"]
[{"$f":"IF(B176=\"\",\"\",SUBTOTAL(3,$B$6:B176))","v":0},"كريم هانى حمدى محمد محمد عطية",null,null,null,null,"1l2"]
[{"$f":"IF(B177=\"\",\"\",SUBTOTAL(3,$B$6:B177))","v":0},"محمد جمعة سليمان السيد احمد شادى",null,null,null,null,"1l2",null,null,null,null,"Sub PrintFromTo_1()"]
[{"$f":"IF(B178=\"\",\"\",SUBTOTAL(3,$B$6:B178))","v":0},"محمد عبد الحميد ابراهيم على عبد العزيز بحر",null,null,null,null,"1l2",null,null,null,null,"X = Application.CountA(Range(\"h1:h7\"))","مدى الفصول "]
[{"$f":"IF(B179=\"\",\"\",SUBTOTAL(3,$B$6:B179))","v":0},"محمد عبد الله عبد المنعم يوسف عبد الله",null,null,null,null,"1l2",null,null,null,null,"For i = 1 To X"]
[{"$f":"IF(B180=\"\",\"\",SUBTOTAL(3,$B$6:B180))","v":0},"محمود رضا محمود محمد مناع",null,null,null,null,"1l2",null,null,null,null,"  Cells(1, 4) = Application.Index(Range(\"h1:h7\"), i)","إرتباط الفصول E1"]
[{"$f":"IF(B181=\"\",\"\",SUBTOTAL(3,$B$6:B181))","v":0},"محمود هشام محمود محمود محمد البحيرى",null,null,null,null,"1l2",null,null,null,null,"  Set Rng1 = Range(\"A1\").Resize(Range(\"l1\"), 5)","عدد الصفوف من أعلى لأول صف به بيانات رقم 5"]
[{"$f":"IF(B182=\"\",\"\",SUBTOTAL(3,$B$6:B182))","v":0},"مصطفى محمود ياسر السيد محمود عابدين",null,null,null,null,"1l2",null,null,null,null,"  ActiveSheet.PageSetup.PrintArea = Rng1.Address"]
[{"$f":"IF(B183=\"\",\"\",SUBTOTAL(3,$B$6:B183))","v":0},"مصطفى هانى عبدالخالق المهدي العليمي",null,null,null,null,"1l2",null,null,null,null,"  ActiveWindow.SelectedSheets.PrintOut Copies:=1"]
[{"$f":"IF(B184=\"\",\"\",SUBTOTAL(3,$B$6:B184))","v":0},"مهاب محمد شهيد عبد المجيد عبد النبى",null,null,null,null,"1l2",null,null,null,null,"Next"]
[{"$f":"IF(B185=\"\",\"\",SUBTOTAL(3,$B$6:B185))","v":0},"وهبه محمد وهبه الخضرى سيد احمد",null,null,null,null,"1l2",null,null,null,null,"End Sub"]
[{"$f":"IF(B186=\"\",\"\",SUBTOTAL(3,$B$6:B186))","v":0},"ياسين وليد الشافعى يوسف ابراهيم",null,null,null,null,"1l2"]
[{"$f":"IF(B187=\"\",\"\",SUBTOTAL(3,$B$6:B187))","v":0},"يوسف احمد سمير توفيق فرج",null,null,null,null,"1l2"]
[{"$f":"IF(B188=\"\",\"\",SUBTOTAL(3,$B$6:B188))","v":0},"يوسف متولى إبراهيم محمد على إبراهيم",null,null,null,null,"1l2"]
[{"$f":"IF(B189=\"\",\"\",SUBTOTAL(3,$B$6:B189))","v":0},"يوسف محمد السعيد عبد الحافظ السيد البدوى",null,null,null,null,"1l2"]
[{"$f":"IF(B190=\"\",\"\",SUBTOTAL(3,$B$6:B190))","v":0},"يوسف وليد حسين السيد غلوش",null,null,null,null,"1l2"]
[{"$f":"IF(B191=\"\",\"\",SUBTOTAL(3,$B$6:B191))","v":0},"ايناس أحمد محمد فتوح أحمد العوني",null,null,null,null,"2l2"]
[{"$f":"IF(B192=\"\",\"\",SUBTOTAL(3,$B$6:B192))","v":0},"بسملة سعد عبدالسميع بكر",null,null,null,null,"2l2"]
[{"$f":"IF(B193=\"\",\"\",SUBTOTAL(3,$B$6:B193))","v":0},"بسمله عبد المنعم عبد المنعم زايد",null,null,null,null,"2l2"]
[{"$f":"IF(B194=\"\",\"\",SUBTOTAL(3,$B$6:B194))","v":0},"جومانه محمد حسن باز الشريف",null,null,null,null,"2l2"]
[{"$f":"IF(B195=\"\",\"\",SUBTOTAL(3,$B$6:B195))","v":0},"جنى أحمد عبد الرازق يوسف",null,null,null,null,"2l2"]
[{"$f":"IF(B196=\"\",\"\",SUBTOTAL(3,$B$6:B196))","v":0},"جنى شوقى محمد حلمى عبدالعزيزمحمد ",null,null,null,null,"2l2"]
[{"$f":"IF(B197=\"\",\"\",SUBTOTAL(3,$B$6:B197))","v":0},"جنى عماد النادى موسى المرادى",null,null,null,null,"2l2"]
[{"$f":"IF(B198=\"\",\"\",SUBTOTAL(3,$B$6:B198))","v":0},"جنى محمد أحمد محمد المكاوى",null,null,null,null,"2l2"]
[{"$f":"IF(B199=\"\",\"\",SUBTOTAL(3,$B$6:B199))","v":0},"روضة أنور عبد الرازق يوسف",null,null,null,null,"2l2"]
[{"$f":"IF(B200=\"\",\"\",SUBTOTAL(3,$B$6:B200))","v":0},"روضة ايهاب عبدالله ابراهيم عامر",null,null,null,null,"2l2"]
[{"$f":"IF(B201=\"\",\"\",SUBTOTAL(3,$B$6:B201))","v":0},"روضه صلاح الدين أحمد عبد الوهاب حماد",null,null,null,null,"2l2"]
[{"$f":"IF(B202=\"\",\"\",SUBTOTAL(3,$B$6:B202))","v":0},"ريتاج ايهاب محمد قاعود",null,null,null,null,"2l2"]
[{"$f":"IF(B203=\"\",\"\",SUBTOTAL(3,$B$6:B203))","v":0},"ريتاج سعيد مسعد السعيد سيد احمد",null,null,null,null,"2l2"]
[{"$f":"IF(B204=\"\",\"\",SUBTOTAL(3,$B$6:B204))","v":0},"ريناد ماجد عبد العزيز أبو الفتوح",null,null,null,null,"2l2"]
[{"$f":"IF(B205=\"\",\"\",SUBTOTAL(3,$B$6:B205))","v":0},"سلمى فوزى محروس أحمد جبر",null,null,null,null,"2l2"]
[{"$f":"IF(B206=\"\",\"\",SUBTOTAL(3,$B$6:B206))","v":0},"سما أحمد عفيفى إبراهيم",null,null,null,null,"2l2"]
[{"$f":"IF(B207=\"\",\"\",SUBTOTAL(3,$B$6:B207))","v":0},"سندس السيد محمد الهادى",null,null,null,null,"2l2"]
[{"$f":"IF(B208=\"\",\"\",SUBTOTAL(3,$B$6:B208))","v":0},"شاهندة محمد السيد يوسف",null,null,null,null,"2l2"]
[{"$f":"IF(B209=\"\",\"\",SUBTOTAL(3,$B$6:B209))","v":0},"شهد ايمن جمال عبد المنعم ",null,null,null,null,"2l2"]
[{"$f":"IF(B210=\"\",\"\",SUBTOTAL(3,$B$6:B210))","v":0},"عائشه محمد عفيفي عفيفي محمد عيسي",null,null,null,null,"2l2"]
[{"$f":"IF(B211=\"\",\"\",SUBTOTAL(3,$B$6:B211))","v":0},"مغفره السيد عبدالعزيز محمد ابراهيم",null,null,null,null,"2l2"]
[{"$f":"IF(B212=\"\",\"\",SUBTOTAL(3,$B$6:B212))","v":0},"منة الله محمد احمد السعيد محمد",null,null,null,null,"2l2"]
[{"$f":"IF(B213=\"\",\"\",SUBTOTAL(3,$B$6:B213))","v":0},"منه محمد سامي فتحي يونس",null,null,null,null,"2l2"]
[{"$f":"IF(B214=\"\",\"\",SUBTOTAL(3,$B$6:B214))","v":0},"ندى أمير عبد الحفيظ أحمد الطنطاوى",null,null,null,null,"2l2"]
[{"$f":"IF(B215=\"\",\"\",SUBTOTAL(3,$B$6:B215))","v":0},"هاجر بشير فتحى عبد الكريم",null,null,null,null,"2l2"]
[{"$f":"IF(B216=\"\",\"\",SUBTOTAL(3,$B$6:B216))","v":0},"هاجر محمد غريب امام",null,null,null,null,"2l2"]
[{"$f":"IF(B217=\"\",\"\",SUBTOTAL(3,$B$6:B217))","v":0},"هدير عبدالمنعم السيد السيد",null,null,null,null,"2l2"]
[{"$f":"IF(B218=\"\",\"\",SUBTOTAL(3,$B$6:B218))","v":0},"هنا هشام محمد جلال الدين متولى",null,null,null,null,"2l2"]
[{"$f":"IF(B219=\"\",\"\",SUBTOTAL(3,$B$6:B219))","v":0},"احمد السيد احمد النجار",null,null,null,null,"2l2"]
[{"$f":"IF(B220=\"\",\"\",SUBTOTAL(3,$B$6:B220))","v":0},"ادهم جمال عبد المنعم حسنين ",null,null,null,null,"2l2"]
[{"$f":"IF(B221=\"\",\"\",SUBTOTAL(3,$B$6:B221))","v":0},"إبراهيم طارق سليمان السيد شادى",null,null,null,null,"2l2"]
[{"$f":"IF(B222=\"\",\"\",SUBTOTAL(3,$B$6:B222))","v":0},"إسلام محمد السيد محمد على",null,null,null,null,"2l2"]
[{"$f":"IF(B223=\"\",\"\",SUBTOTAL(3,$B$6:B223))","v":0},"أحمد أمير عبد الرازق يوسف",null,null,null,null,"2l2"]
[{"$f":"IF(B224=\"\",\"\",SUBTOTAL(3,$B$6:B224))","v":0},"أحمد ربيع عبد الحفيظ حسن علي",null,null,null,null,"2l2"]
[{"$f":"IF(B225=\"\",\"\",SUBTOTAL(3,$B$6:B225))","v":0},"أحمد سمير موسى عبد الدايم",null,null,null,null,"2l2"]
[{"$f":"IF(B226=\"\",\"\",SUBTOTAL(3,$B$6:B226))","v":0},"أحمد ماهر عبدالمولى الصادق فرج",null,null,null,null,"2l2"]
[{"$f":"IF(B227=\"\",\"\",SUBTOTAL(3,$B$6:B227))","v":0},"أشرف مصطفى طه عبد الحميد إبراهيم",null,null,null,null,"2l2"]
[{"$f":"IF(B228=\"\",\"\",SUBTOTAL(3,$B$6:B228))","v":0},"رشدى احمد رشدى العليمى ",null,null,null,null,"2l2"]
[{"$f":"IF(B229=\"\",\"\",SUBTOTAL(3,$B$6:B229))","v":0},"زياد محمد على موسى على",null,null,null,null,"2l2"]
[{"$f":"IF(B230=\"\",\"\",SUBTOTAL(3,$B$6:B230))","v":0},"عبد الفتاح سامح عبد الفتاح العونى",null,null,null,null,"2l2"]
[{"$f":"IF(B231=\"\",\"\",SUBTOTAL(3,$B$6:B231))","v":0},"عبد الله أيمن عبد الله إبراهيم",null,null,null,null,"2l2"]
[{"$f":"IF(B232=\"\",\"\",SUBTOTAL(3,$B$6:B232))","v":0},"عبدالوهاب على محمد على حسن البنا",null,null,null,null,"2l2"]
[{"$f":"IF(B233=\"\",\"\",SUBTOTAL(3,$B$6:B233))","v":0},"عمر أشرف عبد العال مغورى خليل",null,null,null,null,"2l2"]
[{"$f":"IF(B234=\"\",\"\",SUBTOTAL(3,$B$6:B234))","v":0},"عمر محمد عبدالخالق المهدى",null,null,null,null,"2l2"]
[{"$f":"IF(B235=\"\",\"\",SUBTOTAL(3,$B$6:B235))","v":0},"محمد أحمد ابراهيم عبدالمعطى مصطفى",null,null,null,null,"2l2"]
[{"$f":"IF(B236=\"\",\"\",SUBTOTAL(3,$B$6:B236))","v":0},"محمد جلال ابراهيم الدسوقي النادي فرج",null,null,null,null,"2l2"]
[{"$f":"IF(B237=\"\",\"\",SUBTOTAL(3,$B$6:B237))","v":0},"محمد عمر عبدالسميع بكر",null,null,null,null,"2l2"]
[{"$f":"IF(B238=\"\",\"\",SUBTOTAL(3,$B$6:B238))","v":0},"مصطفى حسام عبد المنعم فرج",null,null,null,null,"2l2"]
[{"$f":"IF(B239=\"\",\"\",SUBTOTAL(3,$B$6:B239))","v":0},"مصطفى محمود السيد عبد الفتاح ",null,null,null,null,"2l2"]
[{"$f":"IF(B240=\"\",\"\",SUBTOTAL(3,$B$6:B240))","v":0},"مصطفى محمد احمد مصطفى عطوة",null,null,null,null,"2l2"]
[{"$f":"IF(B241=\"\",\"\",SUBTOTAL(3,$B$6:B241))","v":0},"محمود عبد الرحمن مأمون زايد",null,null,null,null,"2l2"]
[{"$f":"IF(B242=\"\",\"\",SUBTOTAL(3,$B$6:B242))","v":0},"معاذ على على رضوان الشحرى",null,null,null,null,"2l2"]
[{"$f":"IF(B243=\"\",\"\",SUBTOTAL(3,$B$6:B243))","v":0},"يوسف جمال الشناوي الحسيني محمد",null,null,null,null,"2l2"]
[{"$f":"IF(B244=\"\",\"\",SUBTOTAL(3,$B$6:B244))","v":0},"يوسف محمد السعيد محمود",null,null,null,null,"2l2"]
[{"$f":"IF(B245=\"\",\"\",SUBTOTAL(3,$B$6:B245))","v":0},"يوسف نهاد محمد يوسف",null,null,null,null,"2l2"]
[{"$f":"IF(B246=\"\",\"\",SUBTOTAL(3,$B$6:B246))","v":1},"آيه ماهر عبد الرازق حسن",null,null,null,null,"1l3"]
[{"$f":"IF(B247=\"\",\"\",SUBTOTAL(3,$B$6:B247))","v":2},"أريام أحمد صلاح الدين احمد حسن",null,null,null,null,"1l3"]
[{"$f":"IF(B248=\"\",\"\",SUBTOTAL(3,$B$6:B248))","v":3},"أسماء محمد عبد الله محمود محمد البكرى",null,null,null,null,"1l3"]
[{"$f":"IF(B249=\"\",\"\",SUBTOTAL(3,$B$6:B249))","v":4},"بسنت شريف عبد المجيد منصور",null,null,null,null,"1l3"]
[{"$f":"IF(B250=\"\",\"\",SUBTOTAL(3,$B$6:B250))","v":5},"جنى السيد فهمى محمد ابراهيم",null,null,null,null,"1l3"]
[{"$f":"IF(B251=\"\",\"\",SUBTOTAL(3,$B$6:B251))","v":6},"جنى أحمد فايز عبد المولى فرج",null,null,null,null,"1l3"]
[{"$f":"IF(B252=\"\",\"\",SUBTOTAL(3,$B$6:B252))","v":7},"جنى محمد عبد المنعم عابدين",null,null,null,null,"1l3"]
[{"$f":"IF(B253=\"\",\"\",SUBTOTAL(3,$B$6:B253))","v":8},"جومانة محمد عبد المنعم عابدين",null,null,null,null,"1l3"]
[{"$f":"IF(B254=\"\",\"\",SUBTOTAL(3,$B$6:B254))","v":9},"حبيبة عبد المنعم محمد عبد المنعم",null,null,null,null,"1l3"]
[{"$f":"IF(B255=\"\",\"\",SUBTOTAL(3,$B$6:B255))","v":10},"حنان محمد احمد عثمان",null,null,null,null,"1l3"]
[{"$f":"IF(B256=\"\",\"\",SUBTOTAL(3,$B$6:B256))","v":11},"حنين عصام محمد على حسن",null,null,null,null,"1l3"]
[{"$f":"IF(B257=\"\",\"\",SUBTOTAL(3,$B$6:B257))","v":12},"حنين محمود فتحى عواد فرج",null,null,null,null,"1l3"]
[{"$f":"IF(B258=\"\",\"\",SUBTOTAL(3,$B$6:B258))","v":13},"خلود عصام عبد العال عبد الواحد عبد العال",null,null,null,null,"1l3"]
[{"$f":"IF(B259=\"\",\"\",SUBTOTAL(3,$B$6:B259))","v":14},"دنيا أمير عبد الله عامر",null,null,null,null,"1l3"]
[{"$f":"IF(B260=\"\",\"\",SUBTOTAL(3,$B$6:B260))","v":15},"ريناد محمد سمير فرج",null,null,null,null,"1l3"]
[{"$f":"IF(B261=\"\",\"\",SUBTOTAL(3,$B$6:B261))","v":16},"سارة أحمد مأمون زايد",null,null,null,null,"1l3"]
[{"$f":"IF(B262=\"\",\"\",SUBTOTAL(3,$B$6:B262))","v":17},"سارة محمد عبد المنعم يوسف",null,null,null,null,"1l3"]
[{"$f":"IF(B263=\"\",\"\",SUBTOTAL(3,$B$6:B263))","v":18},"ساره حسن عبد الحفيظ اسماعيل",null,null,null,null,"1l3"]
[{"$f":"IF(B264=\"\",\"\",SUBTOTAL(3,$B$6:B264))","v":19},"سجده محمد عبد الله محمد هدهد",null,null,null,null,"1l3"]
[{"$f":"IF(B265=\"\",\"\",SUBTOTAL(3,$B$6:B265))","v":20},"سما محمد عبد الله محمد هدهد",null,null,null,null,"1l3"]
[{"$f":"IF(B266=\"\",\"\",SUBTOTAL(3,$B$6:B266))","v":21},"شروق على محمد مصيلحى",null,null,null,null,"1l3"]
[{"$f":"IF(B267=\"\",\"\",SUBTOTAL(3,$B$6:B267))","v":22},"ضحى عبد المنعم عبد السميع بكر",null,null,null,null,"1l3"]
[{"$f":"IF(B268=\"\",\"\",SUBTOTAL(3,$B$6:B268))","v":23},"مريم السيد صبحى أحمد عبد الدايم",null,null,null,null,"1l3"]
[{"$f":"IF(B269=\"\",\"\",SUBTOTAL(3,$B$6:B269))","v":24},"مريم عامر عبد المنعم عامر",null,null,null,null,"1l3"]
[{"$f":"IF(B270=\"\",\"\",SUBTOTAL(3,$B$6:B270))","v":25},"مريم وليد السيد السيد العونى",null,null,null,null,"1l3"]
[{"$f":"IF(B271=\"\",\"\",SUBTOTAL(3,$B$6:B271))","v":26},"مريم وليد عيد السعيد متولي المردادى",null,null,null,null,"1l3"]
[{"$f":"IF(B272=\"\",\"\",SUBTOTAL(3,$B$6:B272))","v":27},"منة محمد زايد عبد الرازق",null,null,null,null,"1l3"]
[{"$f":"IF(B273=\"\",\"\",SUBTOTAL(3,$B$6:B273))","v":28},"منى محمد مسعد رمضان",null,null,null,null,"1l3"]
[{"$f":"IF(B274=\"\",\"\",SUBTOTAL(3,$B$6:B274))","v":29},"ندى توكل محمود محمد عطية",null,null,null,null,"1l3"]
[{"$f":"IF(B275=\"\",\"\",SUBTOTAL(3,$B$6:B275))","v":30},"هنا عاطف محمد عبد المنعم",null,null,null,null,"1l3"]
[{"$f":"IF(B276=\"\",\"\",SUBTOTAL(3,$B$6:B276))","v":31},"هند سيف النصر محمود حماد",null,null,null,null,"1l3"]
[{"$f":"IF(B277=\"\",\"\",SUBTOTAL(3,$B$6:B277))","v":32},"ياسمين اسلام رجب ابراهيم",null,null,null,null,"1l3"]
[{"$f":"IF(B278=\"\",\"\",SUBTOTAL(3,$B$6:B278))","v":33},"ياسمين هانى عبد الوهاب ابراهيم",null,null,null,null,"1l3"]
[{"$f":"IF(B279=\"\",\"\",SUBTOTAL(3,$B$6:B279))","v":34},"أحمد نصر الدين مسعد عبد الغنى حسن",null,null,null,null,"1l3"]
[{"$f":"IF(B280=\"\",\"\",SUBTOTAL(3,$B$6:B280))","v":35},"أحمد هشام محمد جلال الدين متولى",null,null,null,null,"1l3"]
[{"$f":"IF(B281=\"\",\"\",SUBTOTAL(3,$B$6:B281))","v":36},"أشرف محمود حسن على المكاوى",null,null,null,null,"1l3"]
[{"$f":"IF(B282=\"\",\"\",SUBTOTAL(3,$B$6:B282))","v":37},"بهاء بلال عبد الواحد الشاذلى",null,null,null,null,"1l3"]
[{"$f":"IF(B283=\"\",\"\",SUBTOTAL(3,$B$6:B283))","v":38},"سمير أحمد سمير فرج",null,null,null,null,"1l3"]
[{"$f":"IF(B284=\"\",\"\",SUBTOTAL(3,$B$6:B284))","v":39},"سيف تامر جمال جودة سليمان",null,null,null,null,"1l3"]
[{"$f":"IF(B285=\"\",\"\",SUBTOTAL(3,$B$6:B285))","v":40},"عبد الرحمن باسم نعيم السيد محمود",null,null,null,null,"1l3"]
[{"$f":"IF(B286=\"\",\"\",SUBTOTAL(3,$B$6:B286))","v":41},"عبد الرحمن محمد فوزى صلاح الدين التهامى عامر",null,null,null,null,"1l3"]
[{"$f":"IF(B287=\"\",\"\",SUBTOTAL(3,$B$6:B287))","v":42},"عمر محمد فهمى أحمد الحنفى",null,null,null,null,"1l3","1l3"]
[{"$f":"IF(B288=\"\",\"\",SUBTOTAL(3,$B$6:B288))","v":43},"كريم على محمد صبرى إبراهيم",null,null,null,null,"1l3","2l3"]
[{"$f":"IF(B289=\"\",\"\",SUBTOTAL(3,$B$6:B289))","v":44},"مازن حسنى أبو المجد أحمد أبو المجد",null,null,null,null,"1l3"]
[{"$f":"IF(B290=\"\",\"\",SUBTOTAL(3,$B$6:B290))","v":45},"محمد السيد أحمد الجزار",null,null,null,null,"1l3"]
[{"$f":"IF(B291=\"\",\"\",SUBTOTAL(3,$B$6:B291))","v":46},"محمد أيمن إبراهيم قاعود",null,null,null,null,"1l3"]
[{"$f":"IF(B292=\"\",\"\",SUBTOTAL(3,$B$6:B292))","v":47},"محمد حمدى عبدالستار على فرج",null,null,null,null,"1l3"]
[{"$f":"IF(B293=\"\",\"\",SUBTOTAL(3,$B$6:B293))","v":48},"محمد طارق جلال أحمد السيد",null,null,null,null,"1l3"]
[{"$f":"IF(B294=\"\",\"\",SUBTOTAL(3,$B$6:B294))","v":49},"محمد هانى عبد العال عبد الواحد زايد",null,null,null,null,"1l3"]
[{"$f":"IF(B295=\"\",\"\",SUBTOTAL(3,$B$6:B295))","v":50},"مسعد إيهاب مسعد محمد سلطان",null,null,null,null,"1l3"]
[{"$f":"IF(B296=\"\",\"\",SUBTOTAL(3,$B$6:B296))","v":51},"مصطفى إبراهيم كمال الصادق فرج",null,null,null,null,"1l3"]
[{"$f":"IF(B297=\"\",\"\",SUBTOTAL(3,$B$6:B297))","v":52},"مصطفى عادل وهبه على فراج ",null,null,null,null,"1l3"]
[{"$f":"IF(B298=\"\",\"\",SUBTOTAL(3,$B$6:B298))","v":53},"يحيى إيهاب يحيى عبد الحى",null,null,null,null,"1l3"]
[{"$f":"IF(B299=\"\",\"\",SUBTOTAL(3,$B$6:B299))","v":54},"يوسف خالد محمد فرج عمارة",null,null,null,null,"1l3"]
[{"$f":"IF(B300=\"\",\"\",SUBTOTAL(3,$B$6:B300))","v":55},"يوسف مجدي فرج الغنيمى فراج",null,null,null,null,"1l3"]
[{"$f":"IF(B301=\"\",\"\",SUBTOTAL(3,$B$6:B301))","v":56},"يوسف محمود حسنين عبد المعطى محمد",null,null,null,null,"1l3"]
[{"$f":"IF(B302=\"\",\"\",SUBTOTAL(3,$B$6:B302))","v":57},"إيناس أيمن عبد الله عبد الخالق ",null,null,null,null,"2l3"]
[{"$f":"IF(B303=\"\",\"\",SUBTOTAL(3,$B$6:B303))","v":58},"آلاء عماد عبد الستار محمد إبراهيم",null,null,null,null,"2l3"]
[{"$f":"IF(B304=\"\",\"\",SUBTOTAL(3,$B$6:B304))","v":59},"بسمله مسعد أحمد العليمى أحمد",null,null,null,null,"2l3"]
[{"$f":"IF(B305=\"\",\"\",SUBTOTAL(3,$B$6:B305))","v":60},"جنى أحمد فهمى احمد الحنفى",null,null,null,null,"2l3"]
[{"$f":"IF(B306=\"\",\"\",SUBTOTAL(3,$B$6:B306))","v":61},"جنى عماد رمضان محمد عبدالحميد",null,null,null,null,"2l3"]
[{"$f":"IF(B307=\"\",\"\",SUBTOTAL(3,$B$6:B307))","v":62},"جنى محمد مسعد إمام رضوان",null,null,null,null,"2l3"]
[{"$f":"IF(B308=\"\",\"\",SUBTOTAL(3,$B$6:B308))","v":63},"حبيبة أحمد محمد محمد على",null,null,null,null,"2l3"]
[{"$f":"IF(B309=\"\",\"\",SUBTOTAL(3,$B$6:B309))","v":64},"حبيبة فهمى عبد الخالق العليمى",null,null,null,null,"2l3"]
[{"$f":"IF(B310=\"\",\"\",SUBTOTAL(3,$B$6:B310))","v":65},"دعاء ابراهيم أحمد متولى",null,null,null,null,"2l3"]
[{"$f":"IF(B311=\"\",\"\",SUBTOTAL(3,$B$6:B311))","v":66},"رهف إيهاب محمد الدسوقى يوسف",null,null,null,null,"2l3"]
[{"$f":"IF(B312=\"\",\"\",SUBTOTAL(3,$B$6:B312))","v":67},"ريناد محمد صلاح الدين محمد السلاوى",null,null,null,null,"2l3"]
[{"$f":"IF(B313=\"\",\"\",SUBTOTAL(3,$B$6:B313))","v":68},"شاهنده عبد الحفيظ عبد الرازق مصطفى",null,null,null,null,"2l3"]
[{"$f":"IF(B314=\"\",\"\",SUBTOTAL(3,$B$6:B314))","v":69},"فرح محمد محمود البسيونى",null,null,null,null,"2l3"]
[{"$f":"IF(B315=\"\",\"\",SUBTOTAL(3,$B$6:B315))","v":70},"مريم أيمن محمود البحيرى",null,null,null,null,"2l3"]
[{"$f":"IF(B316=\"\",\"\",SUBTOTAL(3,$B$6:B316))","v":71},"مريم محمد حسن السيد عثمان",null,null,null,null,"2l3"]
[{"$f":"IF(B317=\"\",\"\",SUBTOTAL(3,$B$6:B317))","v":72},"ملك أحمد عبد المنعم يوسف عبد الله",null,null,null,null,"2l3"]
[{"$f":"IF(B318=\"\",\"\",SUBTOTAL(3,$B$6:B318))","v":73},"منة محمد مكاوى أحمد",null,null,null,null,"2l3"]
[{"$f":"IF(B319=\"\",\"\",SUBTOTAL(3,$B$6:B319))","v":74},"ندى أحمد السيد محمد يوسف",null,null,null,null,"2l3"]
[{"$f":"IF(B320=\"\",\"\",SUBTOTAL(3,$B$6:B320))","v":75},"ندى محمد حسن على",null,null,null,null,"2l3"]
[{"$f":"IF(B321=\"\",\"\",SUBTOTAL(3,$B$6:B321))","v":76},"نور صبحى موسى على حسين",null,null,null,null,"2l3"]
[{"$f":"IF(B322=\"\",\"\",SUBTOTAL(3,$B$6:B322))","v":77},"نورا عابد فهيم محمد اليثى",null,null,null,null,"2l3"]
[{"$f":"IF(B323=\"\",\"\",SUBTOTAL(3,$B$6:B323))","v":78},"هاجر أيمن ابراهيم امام سليمان",null,null,null,null,"2l3"]
[{"$f":"IF(B324=\"\",\"\",SUBTOTAL(3,$B$6:B324))","v":79},"هنا اسلام فتحى السيد الشريف",null,null,null,null,"2l3"]
[{"$f":"IF(B325=\"\",\"\",SUBTOTAL(3,$B$6:B325))","v":80},"هنا على حسن على الدهين",null,null,null,null,"2l3"]
[{"$f":"IF(B326=\"\",\"\",SUBTOTAL(3,$B$6:B326))","v":81},"هيام السيد عبدالوهاب محمد عرفة",null,null,null,null,"2l3"]
[{"$f":"IF(B327=\"\",\"\",SUBTOTAL(3,$B$6:B327))","v":82},"ياسمين فهمى فراج احمد فراج",null,null,null,null,"2l3"]
[{"$f":"IF(B328=\"\",\"\",SUBTOTAL(3,$B$6:B328))","v":83},"إسلام حاتم مصطفى محمد أبو الفتوح",null,null,null,null,"2l3"]
[{"$f":"IF(B329=\"\",\"\",SUBTOTAL(3,$B$6:B329))","v":84},"أحمد حاتم محمد رياض عمر",null,null,null,null,"2l3"]
[{"$f":"IF(B330=\"\",\"\",SUBTOTAL(3,$B$6:B330))","v":85},"أحمد عصام لبيب",null,null,null,null,"2l3"]
[{"$f":"IF(B331=\"\",\"\",SUBTOTAL(3,$B$6:B331))","v":86},"أحمد محمد فاضل بكر",null,null,null,null,"2l3"]
[{"$f":"IF(B332=\"\",\"\",SUBTOTAL(3,$B$6:B332))","v":87},"أحمد وائل عقل محمد",null,null,null,null,"2l3"]
[{"$f":"IF(B333=\"\",\"\",SUBTOTAL(3,$B$6:B333))","v":88},"زياد الخضرى محمد الخضرى العليمى",null,null,null,null,"2l3"]
[{"$f":"IF(B334=\"\",\"\",SUBTOTAL(3,$B$6:B334))","v":89},"عبد الراضى محمد عبد الراضى حسنين احمد",null,null,null,null,"2l3"]
[{"$f":"IF(B335=\"\",\"\",SUBTOTAL(3,$B$6:B335))","v":90},"عبد الله محمد زكى عبد العزيز حماد",null,null,null,null,"2l3"]
[{"$f":"IF(B336=\"\",\"\",SUBTOTAL(3,$B$6:B336))","v":91},"على طارق محمد سويلم",null,null,null,null,"2l3"]
[{"$f":"IF(B337=\"\",\"\",SUBTOTAL(3,$B$6:B337))","v":92},"عمر هانى البيومى دياب",null,null,null,null,"2l3"]
[{"$f":"IF(B338=\"\",\"\",SUBTOTAL(3,$B$6:B338))","v":93},"عمرو محمد محروس محمد عبد المطلب",null,null,null,null,"2l3"]
[{"$f":"IF(B339=\"\",\"\",SUBTOTAL(3,$B$6:B339))","v":94},"كريم محمد صلاح مدبولى",null,null,null,null,"2l3"]
[{"$f":"IF(B340=\"\",\"\",SUBTOTAL(3,$B$6:B340))","v":95},"محمد سامى عبد الهادى رزق",null,null,null,null,"2l3"]
[{"$f":"IF(B341=\"\",\"\",SUBTOTAL(3,$B$6:B341))","v":96},"محمد احمد عبدالله هدهد",null,null,null,null,"2l3"]
[{"$f":"IF(B342=\"\",\"\",SUBTOTAL(3,$B$6:B342))","v":97},"محمد أيمن محمود السيد المرادى",null,null,null,null,"2l3"]
[{"$f":"IF(B343=\"\",\"\",SUBTOTAL(3,$B$6:B343))","v":98},"محمد ماهر السيد حسين غلوش",null,null,null,null,"2l3"]
[null,"محمد هانى عبد الرازق عابدين",null,null,null,null,"2l3"]
[null,"محمود عصام إبراهيم الطران",null,null,null,null,"2l3"]
[null,"مروان محمد إبراهيم",null,null,null,null,"2l3"]
[null,"مصطفى ابراهيم محمود السيد",null,null,null,null,"2l3"]
[null,"مصطفى أحمد ابراهيم عبد المعطى",null,null,null,null,"2l3"]
[null,"موسى سامى إبراهيم موسى أحمد",null,null,null,null,"2l3"]
[null,"يوسف أحمد صبحى أحمد",null,null,null,null,"2l3"]
[null,"يوسف أمير سامي عبد المطلب درغام",null,null,null,null,"2l3"]
[null,"يوسف خالد عبد الحفيظ حسن على",null,null,null,null,"2l3"]
[null,"يوسف عبد الله فراج احمد فراج",null,null,null,null,"2l3"]
[null,"يوسف محمد السيد خضير",null,null,null,null,"2l3"]
[null,"يوسف محمد جمال محمود عابدين",null,null,null,null,"2l3"]
[null,"أروى محمد عبد السميع بكر",null,null,null,null,"1l4"]
[null,"إيمان احمد الشناوى الحسينى محمد",null,null,null,null,"1l4"]
[null,"أميرة عبد الناصر عبد الخالق ابو الفتوح",null,null,null,null,"1l4"]
[null,"آيه ابراهيم ابراهيم امام نصر",null,null,null,null,"1l4"]
[null,"بسملة ايهاب عبد المنعم عابدين",null,null,null,null,"1l4"]
[null,"جنى السيد احمد السيد النجار",null,null,null,null,"1l4"]
[null,"جنى زكريا عبد اللطيف السيد عطوة",null,null,null,null,"1l4"]
[null,"حبيبة احمد عبد الغنى امام محمد",null,null,null,null,"1l4"]
[null,"حبيبة بلال عبد السميع بكر",null,null,null,null,"1l4"]
[null,"حبيبه أحمد جمال عبد الحليم السيد",null,null,null,null,"1l4"]
[null,"دعاء عمرو الصادق محمد الصادق",null,null,null,null,"1l4"]
[null,"رفيدة احمد السيد الشاذلى الشحرى",null,null,null,null,"1l4"]
[null,"روضة احمد يوسف احمد النساج",null,null,null,null,"1l4"]
[null,"ريناد ايمن محمد على حسنين عطوة",null,null,null,null,"1l4"]
[null,"سارة حاتم عبد السميع سلطان",null,null,null,null,"1l4"]
[null,"سارة علاء على الليثى",null,null,null,null,"1l4"]
[null,"سلوى فرج عبدالله جبر العيسوى",null,null,null,null,"1l4"]
[null,"سما احمد عبد الخالق بكر",null,null,null,null,"1l4"]
[null,"سندس اسامة محمود السيد داود",null,null,null,null,"1l4"]
[null,"شروق احمد موسى الصادق",null,null,null,null,"1l4"]
[null,"صفا هشام محروس احمد جبر",null,null,null,null,"1l4"]
[null,"مريم ابراهيم عبد الله إبراهيم عامر",null,null,null,null,"1l4"]
[null,"مريم محمد فوزى المهدى",null,null,null,null,"1l4"]
[null,"مريم وليد مسعد سلطان",null,null,null,null,"1l4"]
[null,"ملك محمد أحمد السعيد محمد",null,null,null,null,"1l4"]
[null,"ملك محمد كمال الصادق فرج",null,null,null,null,"1l4"]
[null,"ملك محمود جبر احمد جبر",null,null,null,null,"1l4"]
[null,"منه محمد عبد اللا مراسى",null,null,null,null,"1l4"]
[null,"ميار محمد مصطفى عزيزالدين مصطفى الحاج",null,null,null,null,"1l4"]
[null,"هدي عادل محمد مصيلحي",null,null,null,null,"1l4"]
[null,"هاجر مصطفى طه محمود عيد",null,null,null,null,"1l4"]
[null,"ياسمين محمد عبد العزيز محمد",null,null,null,null,"1l4"]
[null,"إبراهيم سامح ابراهيم مصيلحى",null,null,null,null,"1l4"]
[null,"السيد مصطفى السيد مصطفى",null,null,null,null,"1l4"]
[null,"أحمد ابراهيم احمد عزت محمد خضير",null,null,null,null,"1l4"]
[null,"أحمد انور عبد الرازق يوسف",null,null,null,null,"1l4"]
[null,"أحمد أحمد سيد أحمد سعيد",null,null,null,null,"1l4"]
[null,"أحمد محمد إمام المرادى",null,null,null,null,"1l4"]
[null,"أحمد محمد محمد عبد العزيز حماد",null,null,null,null,"1l4"]
[null,"أيمن فوزى محروس احمد جبر",null,null,null,null,"1l4"]
[null,"رشاد محمود أحمد محمد المرادى",null,null,null,null,"1l4"]
[null,"جمال عمرو الصادق محمد الصادق",null,null,null,null,"1l4"]
[null,"جمال وليد جمال السيد احمد النجار",null,null,null,null,"1l4"]
[null,"حسن محمود حسن متولى",null,null,null,null,"1l4"]
[null,"عبد الرحمن محمد سيد احمد ابراهيم محمد عبد الله",null,null,null,null,"1l4"]
[null,"عبدالرحمن ابراهيم ابراهيم امام نصر",null,null,null,null,"1l4"]
[null,"كريم سامح محمد عطية",null,null,null,null,"1l4"]
[null,"محمد احمد عبدالعزيز محمد عبد الغنى",null,null,null,null,"1l4"]
[null,"محمد ابراهيم ابراهيم امام نصر",null,null,null,null,"1l4"]
[null,"محمد ابراهيم زكى احمد البحيرى",null,null,null,null,"1l4"]
[null,"محمد احمد محمد عبد العليم فرج",null,null,null,null,"1l4"]
[null,"محمد السيد محمد الهادى عثمان",null,null,null,null,"1l4"]
[null,"محمد أحمد جمال عبد الحليم السيد",null,null,null,null,"1l4"]
[null,"محمود محمد إبراهيم متولى",null,null,null,null,"1l4"]
[null,"محمود نادر عقل محمد عقل",null,null,null,null,"1l4"]
[null,"يوسف احمد عبد المعطى محمد العليمى",null,null,null,null,"1l4"]
[null,"ايسل طارق محمد السيد",null,null,null,null,"2l4"]
[null,"بسنت وائل احمد محمد المرادى",null,null,null,null,"2l4"]
[null,"جنى محمود عبد الراضى حسنين احمد",null,null,null,null,"2l4"]
[null,"جومانة خالد احمد عبد الحميد",null,null,null,null,"2l4"]
[null,"جومانه جلال ابراهيم متولى المرادى",null,null,null,null,"2l4"]
[null,"خلود محمد على فهيم مصطفى الحاج",null,null,null,null,"2l4"]
[null,"رقيه مصطفى عفيفى عفيفى عيسى",null,null,null,null,"2l4"]
[null,"رميساء ايمن عفيفى محمد دياب",null,null,null,null,"2l4"]
[null,"رودينة عبد الله عبد الفتاح نصار",null,null,null,null,"2l4"]
[null,"سعاد سعيد عبد المنعم ابراهيم",null,null,null,null,"2l4"]
[null,"سلمى محمد سامى فتحى",null,null,null,null,"2l4"]
[null,"سما حسين عبد الله مرسى المرادى",null,null,null,null,"2l4"]
[null,"شهد مصطفى صبحى عبد العزيز حماد",null,null,null,null,"2l4"]
[null,"مريم احمد صلاح الدين احمد حسن",null,null,null,null,"2l4"]
[null,"مريم سامح الدسوقى احمد ابو المجد",null,null,null,null,"2l4"]
[null,"مريم شوفى محمد حلمى عبد العزيز",null,null,null,null,"2l4"]
[null,"ملك محمد محمود حسنين محمد حسن",null,null,null,null,"2l4"]
[null,"منة الله محمد الشحات حامد محمد",null,null,null,null,"2l4"]
[null,"منه الله عمرو فتحى الحنفى",null,null,null,null,"2l4"]
[null,"مى محمد فتحى عبد الستار البرويشى",null,null,null,null,"2l4"]
[null,"ميار محمود زكى حماد",null,null,null,null,"2l4"]
[null,"نجوى السيد ابراهيم عابدين",null,null,null,null,"2l4"]
[null,"نعمة احمد مجاهد معوض محمد",null,null,null,null,"2l4"]
[null,"هنا فؤاد محمد حلمى عبد العزيز",null,null,null,null,"2l4"]
[null,"يارا ايمن حسن باز الشريف",null,null,null,null,"2l4"]
[null,"ياسمين خالد اابراهيم الدسوقى النادى",null,null,null,null,"2l4"]
[null,"إياد محمود عبد الحفيظ",null,null,null,null,"2l4"]
[null,"أحمد رشدى وهبه حسن متولى",null,null,null,null,"2l4"]
[null,"أحمد هانى احمد محمد سالم",null,null,null,null,"2l4"]
[null,"أدهم محمد محمد الشحات محمود المرادى",null,null,null,null,"2l4"]
[null,"أدهم يحيى ابراهيم محمد ابراهيم",null,null,null,null,"2l4"]
[null,"حسام محمد عبدالعاطى عبدالعزيز محمد",null,null,null,null,"2l4"]
[null,"عبد الرحمن هانى البيومى دياب",null,null,null,null,"2l4"]
[null,"على محمد على عبد العزيز حماد",null,null,null,null,"2l4"]
[null,"عمار ياسر محمود موسى",null,null,null,null,"2l4"]
[null,"عمر وليد السيد عبد المنعم",null,null,null,null,"2l4"]
[null,"كرم هانى كرم عبد الرشيد عقل",null,null,null,null,"2l4"]
[null,"محمد أمير سامى عبدالمطلب درغام",null,null,null,null,"2l4"]
[null,"محمد رامى مسعد عبد المطلب على الاشقر",null,null,null,null,"2l4"]
[null,"محمد سعيد محمد مصيلحى عوض",null,null,null,null,"2l4"]
[null,"محمد عمرو محمد فرج عمارة",null,null,null,null,"2l4"]
[null,"محمد كرم مسعد الزيات",null,null,null,null,"2l4"]
[null,"محمد نهاد محمد يوسف",null,null,null,null,"2l4"]
[null,"محمد وائل ابوالفتوح عبدالسلام",null,null,null,null,"2l4"]
[null,"محمد وائل محمد رشاد الجزار",null,null,null,null,"2l4"]
[null,"محمد وليد سلامة محمد الخضرى",null,null,null,null,"2l4"]
[null,"محمود العشرى عبد المنعم عبدالكريم العشرى",null,null,null,null,"2l4"]
[null,"محمود ماهر محمودعبد العاطى محمد عبد الهادي",null,null,null,null,"2l4"]
[null,"محمود محمد محمود حسين السعودى",null,null,null,null,"2l4"]
[null,"مصطفى محمود السعيد مصطفى المرادى",null,null,null,null,"2l4"]
[null,"يحيى أحمد محمد فتوح العونى",null,null,null,null,"2l4"]
[null,"يوسف خالد ابراهيم الدسوقى النادى",null,null,null,null,"2l4"]
[null,"يوسف سامح شندى",null,null,null,null,"2l4"]
[null,"يوسف محمد عبد الخالق المهدى",null,null,null,null,"2l4"]
[null,"يوسف محمد عبد الخالق محمد حسن",null,null,null,null,"2l4"]
[null,"يوسف محمود احمد محمد داود",null,null,null,null,"2l4"]
[null,"أمنية عبد الحفيظ عبد الرازق مصطفى",null,null,null,null,"1l5"]
[null,"أية ربيع عبد الحفيظ حسن علي",null,null,null,null,"1l5"]
[null,"بسملة اشرف عبد الحليم عنتر عفيفى",null,null,null,null,"1l5"]
[null,"جنى أحمد عبد العزيزمحمد عبد الغنى",null,null,null,null,"1l5"]
[null," جنى محمد حسن باز الشريف ",null,null,null,null,"1l5"]
[null,"جني الخضري وهبه الخضري سيداحمد",null,null,null,null,"1l5"]
[null,"حنان عبد الحميد إبراهيم بحر",null,null,null,null,"1l5"]
[null,"حنين السيد بيومى السيد",null,null,null,null,"1l5"]
[null,"رزان محمد عبد العاطى عبد العزيز محمد",null,null,null,null,"1l5"]
[null,"سلسبيل صالح عبد الحفيظ المرسى المرادى",null,null,null,null,"1l5"]
[null,"سما رامى فتحى عبد العزيز عبد الرحمن",null,null,null,null,"1l5"]
[null,"شيماء ابراهيم أحمد متولى",null,null,null,null,"1l5"]
[null,"صفا يوسف السيد محمد يوسف",null,null,null,null,"1l5"]
[null,"فرح حسن عبدالحفيظ حسن اسماعيل",null,null,null,null,"1l5"]
[null,"فرح عبد الله عبد المنعم يوسف",null,null,null,null,"1l5"]
[null,"مريم محمد حسن عبد الحفيظ عابدين",null,null,null,null,"1l5"]
[null,"مريم محمد حسين محمد عفيفى",null,null,null,null,"1l5"]
[null,"ملك حاتم عبد الله بكر",null,null,null,null,"1l5"]
[null,"ملك صالح السيد حسن عطية",null,null,null,null,"1l5"]
[null,"منى صبحى السيد السيد خليل",null,null,null,null,"1l5"]
[null,"نهى عبد الله حسن محمد عبد الله",null,null,null,null,"1l5"]
[null,"هاجر محمد زكى محمد يوسف",null,null,null,null,"1l5"]
[null,"هنا أحمد محمد عبد العليم فرج",null,null,null,null,"1l5"]
[null,"يمنى عادل على محمد مصطفى",null,null,null,null,"1l5"]
[null,"إياد احمد جبر احمد جبر",null,null,null,null,"1l5"]
[null,"أحمد أيمن السعيد المهدى العليمى",null,null,null,null,"1l5"]
[null,"أحمد عادل محمد جلالة",null,null,null,null,"1l5"]
[null,"أحمد عبد الرازق محمد الهادى عبد الرازق خليل",null,null,null,null,"1l5"]
[null,"أحمد كرم أحمد محمد عبد الله",null,null,null,null,"1l5"]
[null,"أحمد محمد حسن الدهين",null,null,null,null,"1l5"]
[null,"زياد عاطف محمد عبدالمنعم",null,null,null,null,"1l5"]
[null,"زياد هانى محمد الهادى عبد الرازق خليل",null,null,null,null,"1l5"]
[null,"عبد الرحمن عمرو السيد عبد الغفار نوح",null,null,null,null,"1l5"]
[null,"عبد السميع خالد عبد السميع بكر",null,null,null,null,"1l5"]
[null,"عبدالرحمن محمد يوسف عبدالله المرادى",null,null,null,null,"1l5"]
[null,"عمر عفيفى عفيفى قطب حسن",null,null,null,null,"1l5"]
[null,"عمر محمد سمير عطية عفيفى الخولى",null,null,null,null,"1l5"]
[null,"عمير محمد فهمى احمد ابراهيم",null,null,null,null,"1l5"]
[null,"فارس مجاهد على الليثى",null,null,null,null,"1l5"]
[null,"ماجد محمد السيد بكر",null,null,null,null,"1l5"]
[null,"محمد السيد البيومى السيد",null,null,null,null,"1l5"]
[null,"محمد ايمن ابراهيم امام سليمان",null,null,null,null,"1l5"]
[null,"محمد ايهاب محمد عبد الغفار البرعي",null,null,null,null,"1l5"]
[null,"محمد نبيل عبد العزيز بكر",null,null,null,null,"1l5"]
[null,"محمود أحمد محروس السيد يكر",null,null,null,null,"1l5"]
[null,"إيمان محمد جمال عبد الحليم المرادى",null,null,null,null,"2l5"]
[null,"تيسير ابراهيم عبدالعليم بيومى عابدين",null,null,null,null,"2l5"]
[null,"جنه جمال امام محمد المرادى",null,null,null,null,"2l5"]
[null,"حبيبه محمد عبدالمنعم السيد عابدين",null,null,null,null,"2l5"]
[null,"رحمة صلاح الدين احمد عبد الوهاب حماد",null,null,null,null,"2l5"]
[null,"رحيل سعيد مسعد السعيد",null,null,null,null,"2l5"]
[null,"رويدا احمد صبحى عبد الرازق",null,null,null,null,"2l5"]
[null,"سارة ابراهيم محمد فتوح أحمد العونى",null,null,null,null,"2l5"]
[null,"سلمى أيمن محمود البحيرى",null,null,null,null,"2l5"]
[null,"شهد أحمد مكاوى أحمد مكاوى",null,null,null,null,"2l5"]
[null,"شهد شوقى محمد حلمى عبد العزيز",null,null,null,null,"2l5"]
[null,"مريم بشير فتحي عبد الكريم يوسف",null,null,null,null,"2l5"]
[null,"ملك احمد عبدالرازق يوسف المرادي",null,null,null,null,"2l5"]
[null,"ملك أيمن صبحى حماد",null,null,null,null,"2l5"]
[null,"ملك محمد على عبد الجواد",null,null,null,null,"2l5"]
[null,"منه عصام عبد العال عبد الواحد عبد العال",null,null,null,null,"2l5"]
[null,"ميار هشام محمود البحيرى",null,null,null,null,"2l5"]
[null,"نور مصطفى عبد الرازق عبد الغنى عمارة",null,null,null,null,"2l5"]
[null,"هبه جمال ابراهيم محمد عبد الله",null,null,null,null,"2l5"]
[null,"هبه خالد فراح أحمد فراج",null,null,null,null,"2l5"]
[null,"هدير هانى عبد الخالق المهدى العليمى",null,null,null,null,"2l5"]
[null,"ياسمين عبد الكريم عبد الله عبد الكريم يوسف",null,null,null,null,"2l5"]
[null,"احمد السيد عباس مصلحى",null,null,null,null,"2l5"]
[null,"ابراهيم السيد صبحى احمد الفارس",null,null,null,null,"2l5"]
[null,"احمد حسين عبدالله مرسى المرادى",null,null,null,null,"2l5"]
[null,"انس محروس عبد الرازق زايد",null,null,null,null,"2l5"]
[null,"أحمد عبد المنعم محمد امام المرادى",null,null,null,null,"2l5"]
[null,"عبد الرحمن أسامة محمود السيد داود",null,null,null,null,"2l5"]
[null,"عبد الرحمن محمد كمال الصادق",null,null,null,null,"2l5"]
[null,"عبد الرحمن وجيه عبد الحليم عنتر السيد",null,null,null,null,"2l5"]
[null,"على محمد على موسى حسين",null,null,null,null,"2l5"]
[null,"عمار محمد عفيفي محمد عيسي",null,null,null,null,"2l5"]
[null,"فارس محمد عبد الله محمد هدهد",null,null,null,null,"2l5"]
[null,"فهد محمد عبد الحليم سيد المرادي",null,null,null,null,"2l5"]
[null,"كريم أحمد عبد الرحمن السيد يوسف",null,null,null,null,"2l5"]
[null,"كريم شوقى السيد محمد محمد",null,null,null,null,"2l5"]
[null,"محمد أسامه عبد العاطى عبد العزيز موسى",null,null,null,null,"2l5"]
[null,"محمد خالد محمد رشاد الجزار",null,null,null,null,"2l5"]
[null,"محمد طارق محمد السيد أبو الفتوح",null,null,null,null,"2l5"]
[null,"محمد عادل نبيل فهيم",null,null,null,null,"2l5"]
[null,"محمد علي محمد علي حسن",null,null,null,null,"2l5"]
[null,"محمد عماد رمضان محمد عبد الحميد",null,null,null,null,"2l5"]
[null,"محمود شوقي الحسيني عثمان",null,null,null,null,"2l5"]
[null,"محمود وائل محمود حماد",null,null,null,null,"2l5"]
[null,"مروان محمود على الليثى",null,null,null,null,"2l5"]
[null,"مصطفى السيد محمود الحسينى",null,null,null,null,"2l5"]
[null,"يوسف أمير عبدالرازق يوسف",null,null,null,null,"2l5"]
[null,"إنجى ايهاب يحيي عبدالحى على",null,null,null,null,"3l5"]
[null,"أمنية عبد المنعم عبد المنعم زايد",null,null,null,null,"3l5"]
[null,"جنى محمود جمال",null,null,null,null,"3l5"]
[null,"حبيبه هاني كرم عبد الرشيد",null,null,null,null,"3l5"]
[null,"دنيا وليد جمال السيد النجار",null,null,null,null,"3l5"]
[null,"روان السيد عبدالوهاب عبداللطيف متولى",null,null,null,null,"3l5"]
[null,"صفاء أيمن فتحى أحمد رضوان",null,null,null,null,"3l5"]
[null,"مريم احمد مأمون السيد زايد",null,null,null,null,"3l5"]
[null,"ملك مصطفي طه عبد الحميد",null,null,null,null,"3l5"]
[null,"ندى محمد غريب عبد العال امام",null,null,null,null,"3l5"]
[null,"هاجر طارق جلال أحمد",null,null,null,null,"3l5"]
[null,"هاجر محمود فتحى فرج",null,null,null,null,"3l5"]
[null,"باسم السيد عبد المعطى السيد الشربينى",null,null,null,null,"3l5"]
[null,"زياد عبد المنعم السيد محمد زايد",null,null,null,null,"3l5"]
[null,"سعيد محمد السعيد محمود",null,null,null,null,"3l5"]
[null,"عبد العزيز السيد عبد العزيز محمد إبراهيم",null,null,null,null,"3l5"]
[null,"على أشرف عباس سعيد عجور",null,null,null,null,"3l5"]
[null,"عمار سامح عبد الفتاح العونى",null,null,null,null,"3l5"]
[null,"عمر ايهاب محمود يوسف",null,null,null,null,"3l5"]
[null,"مازن محمد  حسين عبدالوهاب سيد أحمد",null,null,null,null,"3l5"]
[null,"محمد عبد المنعم عبد الرازق عبد المنعم محمد",null,null,null,null,"3l5"]
[null,"محمود أحمد ابراهيم متولى السيد",null,null,null,null,"3l5"]
[null,"محمود زايد عبد المنعم زايد",null,null,null,null,"3l5"]
[null,"محمود عادل رزق عبد الهادى",null,null,null,null,"3l5"]
[null,"محمود فوزى محمود سعيد سيد احمد",null,null,null,null,"3l5"]
[null,"يوسف احمد فايز عبدالمولى فرج",null,null,null,null,"3l5"]
[null,"يوسف الخضرى محمد الخضرى العليمى",null,null,null,null,"3l5"]
[null,"يوسف محمد عبد الراضى حسنين أحمد",null,null,null,null,"3l5"]
[null,"اروى عزب عبد المولى عزب خليل",null,null,null,null,"1l6"]
[null,"آلاء أشرف محمود السيد عبد الرحمن",null,null,null,null,"1l6"]
[null,"آلاء محمد عبد اللطيف السيد عطوه",null,null,null,null,"1l6"]
[null,"آيه إيهاب عبد الله إبراهيم عامر",null,null,null,null,"1l6"]
[null,"بسملة محمد فوزى",null,null,null,null,"1l6"]
[null,"جنى عبد الله حسن عبد الله ابراهيم",null,null,null,null,"1l6"]
[null,"حبيبة هشام ابراهيم علي",null,null,null,null,"1l6"]
[null,"حبيبه جمال إمام محمد المرادي",null,null,null,null,"1l6"]
[null,"حبيبه محمد عبد الله مرسي",null,null,null,null,"1l6"]
[null,"دعاء ياسر عبد الرحيم علي شعلان",null,null,null,null,"1l6"]
[null,"دنيا عبد الكريم عبد الله عبد الكريم يوسف",null,null,null,null,"1l6"]
[null,"روان باسم نعيم السيد محمود",null,null,null,null,"1l6"]
[null,"رودينه محمود طه محمود عيد",null,null,null,null,"1l6"]
[null,"رؤي سمير موسي أحمد عبد الدايم",null,null,null,null,"1l6"]
[null,"سامية عبد العزيز محمد عبد العزيز حماد",null,null,null,null,"1l6"]
[null,"سندس ماهر أمين محمد المرادي",null,null,null,null,"1l6"]
[null,"شهد علي محمد مصلحي عوض",null,null,null,null,"1l6"]
[null,"منه امير عبد الله ابراهيم عامر",null,null,null,null,"1l6"]
[null,"السيد طارق سليمان شادي",null,null,null,null,"1l6"]
[null,"إبراهيم موسى ابراهيم موسي المرادى",null,null,null,null,"1l6"]
[null,"أ حمد سامح إبراهيم السيد مصلحى",null,null,null,null,"1l6"]
[null,"أحمد السيد عبد الوهاب محمد عرفه",null,null,null,null,"1l6"]
[null,"أحمد ايهاب مسعد محمد سلطان",null,null,null,null,"1l6"]
[null,"أحمد عصام صبحي محمد المراوي",null,null,null,null,"1l6"]
[null,"أحمد محمد السيد محمد على",null,null,null,null,"1l6"]
[null,"أحمد محمد سعيد سيد المراوي",null,null,null,null,"1l6"]
[null,"أحمد وجيه محمد الخضرى سيد احمد",null,null,null,null,"1l6"]
[null,"أحمد محمد منصور باز الشريف",null,null,null,null,"1l6"]
[null,"أحمد هاني عبدالوهاب علي ابراهيم",null,null,null,null,"1l6"]
[null,"أحمد وليد رمضان عبد العال متولي",null,null,null,null,"1l6"]
[null,"أكرم محمد محمود حسنين",null,null,null,null,"1l6"]
[null,"أنس إبراهيم محمد الحاج موسى",null,null,null,null,"1l6"]
[null,"حسن أيمن حسن باز الشريف",null,null,null,null,"1l6"]
[null,"زياد محمد زايد عبد الرازق عبد العال",null,null,null,null,"1l6"]
[null,"سيف ايمن موسى ابراهيم حسين",null,null,null,null,"1l6"]
[null,"عبد الرحمن أحمد عبد الله أحمد يوسف",null,null,null,null,"1l6"]
[null,"عبد الرحمن جمال الشناوي الحسيني",null,null,null,null,"1l6"]
[null,"عبد الرحمن عصام محمد بكر",null,null,null,null,"1l6"]
[null,"عبد الرحمن عماد محمد عبدالعليم فرج",null,null,null,null,"1l6"]
[null,"عبد الرحمن محمد أحمد عثمان",null,null,null,null,"1l6"]
[null,"عبد العزيز محمد عبد العزيز حماد",null,null,null,null,"1l6"]
[null,"عبدالرحمن فتحي موسي عبد الدايم",null,null,null,null,"1l6"]
[null,"على محمد على عبد الجواد",null,null,null,null,"1l6"]
[null,"عمار حاتم محمد رياض عمر",null,null,null,null,"1l6"]
[null,"عمرو محمد إبراهيم محمد إبراهيم",null,null,null,null,"1l6"]
[null,"محمد ايهاب محمد الدسوقي",null,null,null,null,"1l6"]
[null,"محمد جمعة عبدالغفار محمد هدهد",null,null,null,null,"1l6"]
[null,"محمود أيمن خيرى حماده",null,null,null,null,"1l6"]
[null,"محمود رفعت عبدالرشيد السيد عامر",null,null,null,null,"1l6"]
[null,"يوسف ماهر محمود عبدالعاطي محمد",null,null,null,null,"1l6"]
[null,"يوسف محمد عبد السميع بكر",null,null,null,null,"1l6"]
[null,"يوسف محمد كمال الصادق فرج",null,null,null,null,"1l6"]
[null,"ايثار حمدي عبد الستار علي فرج",null,null,null,null,"2l6"]
[null,"إسراء جمال محمد الخضري",null,null,null,null,"2l6"]
[null,"آيه عبد الحميد علي بكر",null,null,null,null,"2l6"]
[null,"حبيبه صلاح الدين أحمد عبد الوهاب حماد",null,null,null,null,"2l6"]
[null,"سارة ماهر عبد الرازق حسن",null,null,null,null,"2l6"]
[null,"شذا أنور أحمد التهامي حجاج",null,null,null,null,"2l6"]
[null,"شهد عبد الله فراج أحمد فراج",null,null,null,null,"2l6"]
[null,"شهد محمد إبراهيم متولي اليبد",null,null,null,null,"2l6"]
[null,"شهد نادر عقل محمد عقل",null,null,null,null,"2l6"]
[null,"فاطمة أيمن محمد عبد الستارعطيه",null,null,null,null,"2l6"]
[null,"مريم جلال إبراهيم الدسوقي النادي",null,null,null,null,"2l6"]
[null,"مريم سعيد عبدالمنعم ابراهيم موسى",null,null,null,null,"2l6"]
[null,"ملك جمال عبد الوهاب علي",null,null,null,null,"2l6"]
[null,"ملك حسين موسي ابراهيم موسى",null,null,null,null,"2l6"]
[null,"ملك عماد النادي موسي المرادي",null,null,null,null,"2l6"]
[null,"ملك ماهر السيد حسين غلوش",null,null,null,null,"2l6"]
[null,"ملك محمد السيد خضير",null,null,null,null,"2l6"]
[null,"ملك محمد عبد الله حسن فرج",null,null,null,null,"2l6"]
[null,"ملك محمد عبد الله محمود البكري",null,null,null,null,"2l6"]
[null,"ملك نبيل أحمد أبو المجد أحمد",null,null,null,null,"2l6"]
[null,"منه ماهر عبد المولي الصادق فرج",null,null,null,null,"2l6"]
[null,"مني جمال ابراهيم محمد عبدالله",null,null,null,null,"2l6"]
[null,"نادين أيمن عبد الله الصادق فرج",null,null,null,null,"2l6"]
[null,"نور أحمد عبد الرازق يوسف عبد الله",null,null,null,null,"2l6"]
[null,"نورا إبراهيم كمال الصادق فرج",null,null,null,null,"2l6"]
[null,"هاجر ايمن محمود السيد المرادى",null,null,null,null,"2l6"]
[null,"هبة الله السيد فهمي محمد إبراهيم",null,null,null,null,"2l6"]
[null,"امير مجدى ابراهيم الجزار",null,null,null,null,"2l6"]
[null,"انس مجدى ابراهيم الجزار",null,null,null,null,"2l6"]
[null,"آدم محمد السيد العونى",null,null,null,null,"2l6"]
[null,"جمال محمد جمال عبد الحليم المرادي",null,null,null,null,"2l6"]
[null,"زياد أسامه عبد العاطى عبد العزيز موسى",null,null,null,null,"2l6"]
[null,"زياد أشرف عباس سعيد عجور",null,null,null,null,"2l6"]
[null,"سعد محمد سعد محمد سويلم",null,null,null,null,"2l6"]
[null,"عاطف محمد الكيلاني عكاشه",null,null,null,null,"2l6"]
[null,"عصام محمد سمير فرج",null,null,null,null,"2l6"]
[null,"عمار علي علي رضوان الشحري",null,null,null,null,"2l6"]
[null,"عمر أمير عبد الحفيظ أحمد الطنطاوي",null,null,null,null,"2l6"]
[null,"عمر محمد محمد عبد العزيز حماد",null,null,null,null,"2l6"]
[null,"فتحى عبد الكريم فتحى عبد الكريم يوسف",null,null,null,null,"2l6"]
[null,"فتحي أيمن فتحي محمد إبراهيم",null,null,null,null,"2l6"]
[null,"فرج محمود فرج مغاوري",null,null,null,null,"2l6"]
[null,"فهيم ياسر فهيم احمد مروان",null,null,null,null,"2l6"]
[null,"محمد حسام عبد المنعم السيد فرج",null,null,null,null,"2l6"]
[null,"محمد ماهر إبراهيم المرادي",null,null,null,null,"2l6"]
[null,"محمد ماهر محمد سعيد السيد",null,null,null,null,"2l6"]
[null,"محمود عاطف عبدالرازق قطب",null,null,null,null,"2l6"]
[null,"محمود عماد عبد الستار محمد ابراهيم",null,null,null,null,"2l6"]
[null,"مصطفي عاطف محمد أحمد",null,null,null,null,"2l6"]
[null,"مهند أمير سامي عبد المطلب درغام",null,null,null,null,"2l6"]
[null,"يوسف محمد جبر أحمد جبر",null,null,null,null,"2l6"]
[null,"يوسف محمد عبد الحميد هدهد",null,null,null,null,"2l6"]
[null,"يوسف محمود عبد الموجود السيد سيد أحمد",null,null,null,null,"2l6"]

{"sheet":"Sheet1","index":1,"n_rows":0,"n_cols":0,"rows_kept":0,"cut":false,"hidden":false,"merged":[]}